[Event "Titled Tuesday Blitz May 25 2021"]
[White "Ezat, Mohamed"]
[Black "Sanal, Vahap"]
[WhiteFideId "10600906"]
[BlackFideId "6300545"]
[WhiteElo "2417"]
[BlackElo "2507"]
[Result "0-1"]
[Round "02"]
[TimeControl "180+1"]
[Date "2021.05.25"]
[WhiteClock "0:00:30"]
[BlackClock "0:01:25"]

1. d4 {[%clk 0:02:57]}  d6 {[%clk 0:02:58]} 2. c4 {[%clk 0:02:52]}  e5 {[%clk 0:02:58]} 3. Nf3 {[%clk 0:02:51]}  e4 {[%clk 0:02:57]} 4. Ng5 {[%clk 0:02:51]}  f5 {[%clk 0:02:58]} 5. h4 {[%clk 0:02:51]}  Nf6 {[%clk 0:02:58]} 6. Nh3 {[%clk 0:02:51]}  d5 {[%clk 0:02:51]} 7. Bg5 {[%clk 0:02:45]}  dxc4 {[%clk 0:02:47]} 8. Nf4 {[%clk 0:02:42]}  Bd6 {[%clk 0:02:34]} 9. e3 {[%clk 0:02:40]}  b5 {[%clk 0:02:32]} 10. a4 {[%clk 0:02:39]}  c6 {[%clk 0:02:32]} 11. axb5 {[%clk 0:02:39]}  cxb5 {[%clk 0:02:32]} 12. b3 {[%clk 0:02:39]}  Bb4+ {[%clk 0:02:31]} 13. Ke2 {[%clk 0:02:27]}  c3 {[%clk 0:02:30]} 14. Bxf6 {[%clk 0:02:12]}  Qxf6 {[%clk 0:02:20]} 15. Nd5 {[%clk 0:02:11]}  Qd6 {[%clk 0:02:20]} 16. Nxb4 {[%clk 0:02:11]}  Qxb4 {[%clk 0:02:21]} 17. Qc2 {[%clk 0:02:11]}  O-O {[%clk 0:02:20]} 18. Qxc3 {[%clk 0:02:10]}  Qe7 {[%clk 0:02:21]} 19. Qc5 {[%clk 0:02:01]}  Qf7 {[%clk 0:02:19]} 20. Nc3 {[%clk 0:01:41]}  Be6 {[%clk 0:02:03]} 21. d5 {[%clk 0:01:24]}  Bd7 {[%clk 0:02:03]} 22. Ke1 {[%clk 0:01:19]}  Rc8 {[%clk 0:01:59]} 23. Qd4 {[%clk 0:01:17]}  b4 {[%clk 0:01:59]} 24. Qxb4 {[%clk 0:01:15]}  Qf6 {[%clk 0:01:59]} 25. Rc1 {[%clk 0:01:14]}  Na6 {[%clk 0:01:56]} 26. Bxa6 {[%clk 0:00:52]}  Qxa6 {[%clk 0:01:55]} 27. Qd4 {[%clk 0:00:44]}  Rab8 {[%clk 0:01:53]} 28. Rh3 {[%clk 0:00:41]}  Rxb3 {[%clk 0:01:50]} 29. Rg3 {[%clk 0:00:41]}  g6 {[%clk 0:01:51]} 30. h5 {[%clk 0:00:38]}  Rbxc3 {[%clk 0:01:32]} 31. Qxc3 {[%clk 0:00:33]}  Rxc3 {[%clk 0:01:32]} 32. Rxc3 {[%clk 0:00:33]}  Qa1+ {[%clk 0:01:32]} 33. Kd2 {[%clk 0:00:33]}  Qb2+ {[%clk 0:01:32]} 34. Rc2 {[%clk 0:00:33]}  Qb4+ {[%clk 0:01:33]} 35. Kc1 {[%clk 0:00:32]}  Qa3+ {[%clk 0:01:27]} 36. Kd2 {[%clk 0:00:32]}  Qa5+ {[%clk 0:01:28]} 37. Kc1 {[%clk 0:00:31]}  Kg7 {[%clk 0:01:27]} 38. hxg6 {[%clk 0:00:30]}  hxg6 {[%clk 0:01:27]} 39. d6 {[%clk 0:00:31]}  Qa3+ {[%clk 0:01:24]} 40. Kd2 {[%clk 0:00:30]}  Qxd6+ {[%clk 0:01:25]} 41. Ke1 {[%clk 0:00:30]}  Qb4+ {[%clk 0:01:25]} 0-1


[Site "https://www.chess.com"]

[Event "Titled Tuesday Blitz May 25 2021"]
[White "Fayzullaev, Akmal"]
[Black "Yuan, Qingyu"]
[WhiteFideId "14200554"]
[BlackFideId "8609772"]
[WhiteElo "2264"]
[BlackElo "2359"]
[Result "0-1"]
[Round "02"]
[TimeControl "180+1"]
[Date "2021.05.25"]
[WhiteClock "0:01:20"]
[BlackClock "0:00:56"]

1. d4 {[%clk 0:03:00]}  Nf6 {[%clk 0:02:56]} 2. c4 {[%clk 0:03:01]}  g6 {[%clk 0:02:56]} 3. Nc3 {[%clk 0:03:01]}  d5 {[%clk 0:02:57]} 4. Nf3 {[%clk 0:02:52]}  Bg7 {[%clk 0:02:56]} 5. Bg5 {[%clk 0:02:52]}  Ne4 {[%clk 0:02:52]} 6. cxd5 {[%clk 0:02:53]}  Nxg5 {[%clk 0:02:52]} 7. Nxg5 {[%clk 0:02:54]}  e6 {[%clk 0:02:52]} 8. Qd2 {[%clk 0:02:54]}  h6 {[%clk 0:02:45]} 9. Nf3 {[%clk 0:02:54]}  exd5 {[%clk 0:02:46]} 10. h4 {[%clk 0:02:50]}  c6 {[%clk 0:02:40]} 11. h5 {[%clk 0:02:50]}  g5 {[%clk 0:02:40]} 12. e3 {[%clk 0:02:49]}  Nd7 {[%clk 0:02:32]} 13. Bd3 {[%clk 0:02:48]}  Qe7 {[%clk 0:02:29]} 14. O-O-O {[%clk 0:02:47]}  Nf6 {[%clk 0:02:20]} 15. Ne5 {[%clk 0:02:45]}  Ng4 {[%clk 0:02:18]} 16. f4 {[%clk 0:02:42]}  Nxe5 {[%clk 0:02:11]} 17. fxe5 {[%clk 0:02:29]}  Bg4 {[%clk 0:01:58]} 18. Rdf1 {[%clk 0:02:29]}  O-O-O {[%clk 0:01:50]} 19. Qf2 {[%clk 0:02:28]}  Be6 {[%clk 0:01:47]} 20. Bf5 {[%clk 0:02:28]}  Rhf8 {[%clk 0:01:46]} 21. e4 {[%clk 0:02:18]}  f6 {[%clk 0:01:26]} 22. exd5 {[%clk 0:02:16]}  cxd5 {[%clk 0:01:21]} 23. exf6 {[%clk 0:01:55]}  Rxf6 {[%clk 0:01:17]} 24. Qe2 {[%clk 0:01:45]}  Qd7 {[%clk 0:01:07]} 25. Bxe6 {[%clk 0:01:44]}  Rxe6 {[%clk 0:01:07]} 26. Qd3 {[%clk 0:01:41]}  Rde8 {[%clk 0:01:04]} 27. Kb1 {[%clk 0:01:34]}  Kb8 {[%clk 0:01:00]} 28. Rf5 {[%clk 0:01:23]}  Re3 {[%clk 0:00:58]} 29. Re1 {[%clk 0:01:24]}  Rxe1+ {[%clk 0:00:57]} 30. Kc2 {[%clk 0:01:22]}  R1e3 {[%clk 0:00:56]} 31. Qd1 {[%clk 0:01:20]}  Qxf5+ {[%clk 0:00:56]} 0-1


[Site "https://www.chess.com"]

[Event "Titled Tuesday Blitz May 25 2021"]
[White "Filali, Razzouki Marouane"]
[Black "Chasin, Nico"]
[WhiteFideId "9003720"]
[BlackFideId "30908477"]
[WhiteElo "2073"]
[BlackElo "2135"]
[Result "1-0"]
[Round "02"]
[TimeControl "180+1"]
[Date "2021.05.25"]
[WhiteClock "0:00:24"]
[BlackClock "0:00:15"]

1. e4 {[%clk 0:03:00]}  c5 {[%clk 0:02:51]} 2. Nf3 {[%clk 0:03:00]}  e6 {[%clk 0:02:50]} 3. b4 {[%clk 0:03:00]}  cxb4 {[%clk 0:02:44]} 4. d4 {[%clk 0:02:59]}  d5 {[%clk 0:02:43]} 5. e5 {[%clk 0:02:59]}  Nc6 {[%clk 0:02:43]} 6. a3 {[%clk 0:02:59]}  bxa3 {[%clk 0:02:44]} 7. Bd3 {[%clk 0:02:58]}  a6 {[%clk 0:02:35]} 8. c3 {[%clk 0:02:56]}  f5 {[%clk 0:02:23]} 9. exf6 {[%clk 0:02:53]}  Nxf6 {[%clk 0:02:22]} 10. O-O {[%clk 0:02:52]}  Bd6 {[%clk 0:02:20]} 11. Re1 {[%clk 0:02:33]}  O-O {[%clk 0:02:17]} 12. Ne5 {[%clk 0:02:31]}  Bd7 {[%clk 0:01:42]} 13. Bxa3 {[%clk 0:02:20]}  Bxa3 {[%clk 0:01:37]} 14. Nxa3 {[%clk 0:02:19]}  Nxe5 {[%clk 0:01:32]} 15. dxe5 {[%clk 0:02:18]}  Ne4 {[%clk 0:01:26]} 16. Bxe4 {[%clk 0:02:07]}  dxe4 {[%clk 0:01:16]} 17. Qd6 {[%clk 0:01:48]}  Bc6 {[%clk 0:01:01]} 18. Qxe6+ {[%clk 0:01:46]}  Kh8 {[%clk 0:00:56]} 19. Rad1 {[%clk 0:01:33]}  Qb6 {[%clk 0:00:51]} 20. Re3 {[%clk 0:01:22]}  Qb2 {[%clk 0:00:34]} 21. Rf1 {[%clk 0:00:40]}  Qxa3 {[%clk 0:00:28]} 22. Rh3 {[%clk 0:00:39]}  Qc5 {[%clk 0:00:23]} 23. Qg6 {[%clk 0:00:38]}  h6 {[%clk 0:00:15]} 24. Rxh6+ {[%clk 0:00:24]} 1-0


[Site "https://www.chess.com"]

[Event "Titled Tuesday Blitz May 25 2021"]
[White "Goryachkina, Aleksandra"]
[Black "Davtyan, David Arm."]
[WhiteFideId "4147103"]
[BlackFideId "13310046"]
[WhiteElo "2441"]
[BlackElo "2028"]
[Result "0-1"]
[Round "02"]
[TimeControl "180+1"]
[Date "2021.05.25"]
[WhiteClock "0:00:02"]
[BlackClock "0:00:04"]

1. e4 {[%clk 0:03:00]}  c5 {[%clk 0:03:00]} 2. Nf3 {[%clk 0:03:00]}  Nc6 {[%clk 0:03:00]} 3. c3 {[%clk 0:02:58]}  Nf6 {[%clk 0:02:57]} 4. e5 {[%clk 0:02:56]}  Nd5 {[%clk 0:02:57]} 5. Bc4 {[%clk 0:02:55]}  e6 {[%clk 0:02:57]} 6. d4 {[%clk 0:02:54]}  cxd4 {[%clk 0:02:57]} 7. cxd4 {[%clk 0:02:54]}  d6 {[%clk 0:02:58]} 8. O-O {[%clk 0:02:53]}  Be7 {[%clk 0:02:56]} 9. Bd2 {[%clk 0:02:52]}  O-O {[%clk 0:02:57]} 10. Nc3 {[%clk 0:02:52]}  dxe5 {[%clk 0:02:55]} 11. dxe5 {[%clk 0:02:48]}  Nxc3 {[%clk 0:02:52]} 12. Bxc3 {[%clk 0:02:48]}  b6 {[%clk 0:02:52]} 13. Qe2 {[%clk 0:02:45]}  Bb7 {[%clk 0:02:52]} 14. Rfd1 {[%clk 0:02:44]}  Qc7 {[%clk 0:02:50]} 15. Rac1 {[%clk 0:02:42]}  Rad8 {[%clk 0:02:49]} 16. Bd3 {[%clk 0:02:40]}  g6 {[%clk 0:02:45]} 17. Qe3 {[%clk 0:02:34]}  Rfe8 {[%clk 0:02:43]} 18. h4 {[%clk 0:02:28]}  h5 {[%clk 0:02:35]} 19. Ng5 {[%clk 0:01:57]}  Bxg5 {[%clk 0:01:48]} 20. Qxg5 {[%clk 0:01:56]}  Qe7 {[%clk 0:01:47]} 21. Qg3 {[%clk 0:01:48]}  Nd4 {[%clk 0:01:41]} 22. Bxd4 {[%clk 0:01:24]}  Rxd4 {[%clk 0:01:40]} 23. Be2 {[%clk 0:01:23]}  Rxh4 {[%clk 0:01:37]} 24. Rd6 {[%clk 0:01:13]}  Bd5 {[%clk 0:01:31]} 25. Rd1 {[%clk 0:00:57]}  Rb4 {[%clk 0:01:22]} 26. R1xd5 {[%clk 0:00:32]}  exd5 {[%clk 0:01:19]} 27. e6 {[%clk 0:00:31]}  Re4 {[%clk 0:01:11]} 28. exf7+ {[%clk 0:00:28]}  Qxf7 {[%clk 0:01:12]} 29. Rxg6+ {[%clk 0:00:14]}  Kf8 {[%clk 0:01:07]} 30. Bf3 {[%clk 0:00:07]}  R4e5 {[%clk 0:01:04]} 31. Rh6 {[%clk 0:00:04]}  R8e6 {[%clk 0:00:59]} 32. Rh8+ {[%clk 0:00:04]}  Ke7 {[%clk 0:00:57]} 33. Ra8 {[%clk 0:00:03]}  Kf6 {[%clk 0:00:52]} 34. Qf4+ {[%clk 0:00:03]}  Kg7 {[%clk 0:00:49]} 35. Qxf7+ {[%clk 0:00:03]}  Kxf7 {[%clk 0:00:49]} 36. Rxa7+ {[%clk 0:00:04]}  Kf6 {[%clk 0:00:41]} 37. Ra8 {[%clk 0:00:03]}  Rd6 {[%clk 0:00:38]} 38. Rf8+ {[%clk 0:00:03]}  Ke7 {[%clk 0:00:38]} 39. Rh8 {[%clk 0:00:03]}  d4 {[%clk 0:00:37]} 40. Bxh5 {[%clk 0:00:02]}  d3 {[%clk 0:00:37]} 41. f4 {[%clk 0:00:01]}  Re1+ {[%clk 0:00:36]} 42. Kf2 {[%clk 0:00:02]}  d2 {[%clk 0:00:36]} 43. Re8+ {[%clk 0:00:02]}  Kf6 {[%clk 0:00:28]} 44. Rxe1 {[%clk 0:00:02]}  dxe1=B+ {[%clk 0:00:27]} 45. Kxe1 {[%clk 0:00:03]}  Kf5 {[%clk 0:00:27]} 46. Bf3 {[%clk 0:00:03]}  Kxf4 {[%clk 0:00:27]} 47. Ke2 {[%clk 0:00:03]}  Rd4 {[%clk 0:00:23]} 48. a3 {[%clk 0:00:03]}  Rd6 {[%clk 0:00:21]} 49. Bb7 {[%clk 0:00:02]}  Rd7 {[%clk 0:00:18]} 50. Bf3 {[%clk 0:00:01]}  Rd8 {[%clk 0:00:17]} 51. a4 {[%clk 0:00:01]}  Rd4 {[%clk 0:00:16]} 52. b3 {[%clk 0:00:02]}  Ke5 {[%clk 0:00:16]} 53. Bc6 {[%clk 0:00:01]}  Rb4 {[%clk 0:00:15]} 54. Bb5 {[%clk 0:00:02]}  Rxb3 {[%clk 0:00:15]} 55. Kf2 {[%clk 0:00:02]}  Kf4 {[%clk 0:00:15]} 56. Ke2 {[%clk 0:00:02]}  Rb2+ {[%clk 0:00:15]} 57. Kd3 {[%clk 0:00:02]}  Rxg2 {[%clk 0:00:15]} 58. Kc4 {[%clk 0:00:03]}  Rc2+ {[%clk 0:00:13]} 59. Kb4 {[%clk 0:00:03]}  Rb2+ {[%clk 0:00:12]} 60. Kc3 {[%clk 0:00:03]}  Ra2 {[%clk 0:00:10]} 61. Kd4 {[%clk 0:00:03]}  Rd2+ {[%clk 0:00:08]} 62. Kc4 {[%clk 0:00:03]}  Ke3 {[%clk 0:00:07]} 63. Kc3 {[%clk 0:00:03]}  Rd8 {[%clk 0:00:06]} 64. Kc4 {[%clk 0:00:03]}  Ra8 {[%clk 0:00:06]} 65. Kb4 {[%clk 0:00:03]}  Ra5 {[%clk 0:00:06]} 66. Kc4 {[%clk 0:00:03]}  Ke4 {[%clk 0:00:06]} 67. Kb4 {[%clk 0:00:03]}  Kd4 {[%clk 0:00:06]} 68. Kb3 {[%clk 0:00:03]}  Kc5 {[%clk 0:00:05]} 69. Kc3 {[%clk 0:00:03]}  Ra8 {[%clk 0:00:05]} 70. Kb3 {[%clk 0:00:03]}  Rf8 {[%clk 0:00:06]} 71. Kc3 {[%clk 0:00:04]}  Rf3+ {[%clk 0:00:06]} 72. Kc2 {[%clk 0:00:03]}  Kb4 {[%clk 0:00:06]} 73. Kb2 {[%clk 0:00:04]}  Rf2+ {[%clk 0:00:05]} 74. Kc1 {[%clk 0:00:04]}  Kc3 {[%clk 0:00:05]} 75. Kd1 {[%clk 0:00:04]}  Rb2 {[%clk 0:00:04]} 76. Kc1 {[%clk 0:00:04]}  Rb4 {[%clk 0:00:04]} 77. Bd7 {[%clk 0:00:03]}  Kb3 {[%clk 0:00:04]} 78. Bc6 {[%clk 0:00:02]}  Rc4+ {[%clk 0:00:04]} 0-1


[Site "https://www.chess.com"]

[Event "Titled Tuesday Blitz May 25 2021"]
[White "Hasangatin, Ramil"]
[Black "Maly, Alexey"]
[WhiteFideId "4122160"]
[BlackFideId "14103184"]
[WhiteElo "2375"]
[BlackElo "2314"]
[Result "0-1"]
[Round "02"]
[TimeControl "180+1"]
[Date "2021.05.25"]
[WhiteClock "0:00:29"]
[BlackClock "0:01:03"]

1. e4 {[%clk 0:03:00]}  c6 {[%clk 0:02:59]} 2. Nf3 {[%clk 0:02:59]}  d5 {[%clk 0:02:59]} 3. d3 {[%clk 0:03:00]}  Bg4 {[%clk 0:02:56]} 4. h3 {[%clk 0:02:59]}  Bxf3 {[%clk 0:02:56]} 5. Qxf3 {[%clk 0:02:59]}  dxe4 {[%clk 0:02:56]} 6. dxe4 {[%clk 0:02:58]}  e5 {[%clk 0:02:56]} 7. Bc4 {[%clk 0:02:52]}  Nf6 {[%clk 0:02:55]} 8. a4 {[%clk 0:02:51]}  Bc5 {[%clk 0:02:51]} 9. O-O {[%clk 0:02:51]}  O-O {[%clk 0:02:49]} 10. Bg5 {[%clk 0:02:50]}  Nbd7 {[%clk 0:02:49]} 11. Nd2 {[%clk 0:02:49]}  a5 {[%clk 0:02:47]} 12. Nb3 {[%clk 0:02:45]}  Ba7 {[%clk 0:02:47]} 13. Rad1 {[%clk 0:02:45]}  Qc7 {[%clk 0:02:45]} 14. Rd2 {[%clk 0:02:42]}  Rab8 {[%clk 0:02:38]} 15. Ra1 {[%clk 0:02:30]}  b5 {[%clk 0:02:33]} 16. Bf1 {[%clk 0:02:30]}  Bb6 {[%clk 0:02:28]} 17. g3 {[%clk 0:02:16]}  h6 {[%clk 0:02:24]} 18. Bxf6 {[%clk 0:02:16]}  Nxf6 {[%clk 0:02:24]} 19. Kg2 {[%clk 0:02:17]}  Nd7 {[%clk 0:02:16]} 20. axb5 {[%clk 0:02:13]}  cxb5 {[%clk 0:02:11]} 21. Bxb5 {[%clk 0:02:13]}  Nc5 {[%clk 0:02:10]} 22. Bc4 {[%clk 0:01:56]}  Nxb3 {[%clk 0:02:09]} 23. Bxb3 {[%clk 0:01:56]}  Bd4 {[%clk 0:02:09]} 24. c3 {[%clk 0:01:46]}  Rxb3 {[%clk 0:02:08]} 25. Qd1 {[%clk 0:01:40]}  Bxc3 {[%clk 0:01:44]} 26. bxc3 {[%clk 0:01:38]}  Rxc3 {[%clk 0:01:41]} 27. Rd5 {[%clk 0:01:33]}  Rc5 {[%clk 0:01:36]} 28. Rxc5 {[%clk 0:01:10]}  Qxc5 {[%clk 0:01:37]} 29. Qd5 {[%clk 0:01:10]}  Qxd5 {[%clk 0:01:33]} 30. exd5 {[%clk 0:01:11]}  Ra8 {[%clk 0:01:33]} 31. Kf3 {[%clk 0:01:10]}  f5 {[%clk 0:01:30]} 32. g4 {[%clk 0:01:10]}  g6 {[%clk 0:01:30]} 33. gxf5 {[%clk 0:01:04]}  gxf5 {[%clk 0:01:31]} 34. Ke3 {[%clk 0:01:04]}  Kf7 {[%clk 0:01:29]} 35. Kd3 {[%clk 0:01:02]}  Ke7 {[%clk 0:01:29]} 36. Rg1 {[%clk 0:00:51]}  a4 {[%clk 0:01:26]} 37. Kc2 {[%clk 0:00:48]}  a3 {[%clk 0:01:25]} 38. Kb1 {[%clk 0:00:48]}  a2+ {[%clk 0:01:25]} 39. Ka1 {[%clk 0:00:49]}  Kd6 {[%clk 0:01:22]} 40. Rg6+ {[%clk 0:00:48]}  Kxd5 {[%clk 0:01:23]} 41. Rxh6 {[%clk 0:00:48]}  e4 {[%clk 0:01:22]} 42. Rh7 {[%clk 0:00:42]}  f4 {[%clk 0:01:20]} 43. Re7 {[%clk 0:00:37]}  Rh8 {[%clk 0:01:12]} 44. Kxa2 {[%clk 0:00:36]}  Rxh3 {[%clk 0:01:12]} 45. Rd7+ {[%clk 0:00:30]}  Ke5 {[%clk 0:01:06]} 46. Re7+ {[%clk 0:00:29]}  Kf5 {[%clk 0:01:05]} 47. Rf7+ {[%clk 0:00:29]}  Kg4 {[%clk 0:01:05]} 48. Kb1 {[%clk 0:00:29]}  Kf3 {[%clk 0:01:04]} 49. Kc1 {[%clk 0:00:28]}  Rh2 {[%clk 0:01:03]} 50. Kd1 {[%clk 0:00:28]}  Rxf2 {[%clk 0:01:03]} 51. Ke1 {[%clk 0:00:29]}  e3 {[%clk 0:01:03]} 0-1


[Site "https://www.chess.com"]

[Event "Titled Tuesday Blitz May 25 2021"]
[White "Herrera Reyes, Jose Antonio"]
[Black "Zhigalko, Sergei"]
[WhiteFideId "2274914"]
[BlackFideId "13502956"]
[WhiteElo "2370"]
[BlackElo "2662"]
[Result "0-1"]
[Round "02"]
[TimeControl "180+1"]
[Date "2021.05.25"]
[WhiteClock "0:01:01"]
[BlackClock "0:00:38"]

1. Nf3 {[%clk 0:03:00]}  d5 {[%clk 0:02:59]} 2. g3 {[%clk 0:03:00]}  c6 {[%clk 0:02:55]} 3. Bg2 {[%clk 0:03:01]}  Bg4 {[%clk 0:02:55]} 4. d3 {[%clk 0:03:01]}  e6 {[%clk 0:02:55]} 5. c3 {[%clk 0:03:02]}  Bd6 {[%clk 0:02:53]} 6. O-O {[%clk 0:03:02]}  Ne7 {[%clk 0:02:53]} 7. Qb3 {[%clk 0:03:02]}  Qb6 {[%clk 0:02:49]} 8. Be3 {[%clk 0:03:02]}  Qa6 {[%clk 0:02:48]} 9. a4 {[%clk 0:03:01]}  Nd7 {[%clk 0:02:48]} 10. Qa2 {[%clk 0:03:01]}  O-O {[%clk 0:02:46]} 11. b4 {[%clk 0:03:01]}  b6 {[%clk 0:02:45]} 12. Nbd2 {[%clk 0:03:00]}  Rfc8 {[%clk 0:02:44]} 13. Nb3 {[%clk 0:02:59]}  c5 {[%clk 0:02:42]} 14. b5 {[%clk 0:02:56]}  Qb7 {[%clk 0:02:42]} 15. c4 {[%clk 0:02:53]}  Qc7 {[%clk 0:02:32]} 16. cxd5 {[%clk 0:02:51]}  exd5 {[%clk 0:02:27]} 17. Nbd2 {[%clk 0:02:47]}  h6 {[%clk 0:02:23]} 18. d4 {[%clk 0:02:36]}  Be6 {[%clk 0:02:15]} 19. Nb3 {[%clk 0:02:16]}  Nf5 {[%clk 0:02:14]} 20. Qd2 {[%clk 0:02:01]}  Nf6 {[%clk 0:02:01]} 21. Ne5 {[%clk 0:01:55]}  Ne4 {[%clk 0:01:50]} 22. Bxe4 {[%clk 0:01:54]}  dxe4 {[%clk 0:01:50]} 23. Rab1 {[%clk 0:01:42]}  Bxb3 {[%clk 0:01:38]} 24. Rxb3 {[%clk 0:01:40]}  cxd4 {[%clk 0:01:38]} 25. Bxd4 {[%clk 0:01:38]}  Nxd4 {[%clk 0:01:38]} 26. Qxd4 {[%clk 0:01:39]}  Bxe5 {[%clk 0:01:39]} 27. Qxe4 {[%clk 0:01:39]}  Qc4 {[%clk 0:01:34]} 28. Qxc4 {[%clk 0:01:31]}  Rxc4 {[%clk 0:01:34]} 29. a5 {[%clk 0:01:32]}  Bd4 {[%clk 0:01:29]} 30. Rd1 {[%clk 0:01:29]}  bxa5 {[%clk 0:01:23]} 31. e3 {[%clk 0:01:28]}  Bb6 {[%clk 0:01:23]} 32. Rd7 {[%clk 0:01:28]}  Rac8 {[%clk 0:01:21]} 33. Kg2 {[%clk 0:01:28]}  Rb4 {[%clk 0:01:20]} 34. Rbd3 {[%clk 0:01:27]}  Rxb5 {[%clk 0:01:20]} 35. Rb7 {[%clk 0:01:25]}  Rb2 {[%clk 0:01:17]} 36. Rdd7 {[%clk 0:01:25]}  Rf8 {[%clk 0:01:17]} 37. Kf3 {[%clk 0:01:24]}  a4 {[%clk 0:01:16]} 38. Rd3 {[%clk 0:01:24]}  Rb3 {[%clk 0:01:11]} 39. Rd2 {[%clk 0:01:21]}  a3 {[%clk 0:01:07]} 40. Ra2 {[%clk 0:01:21]}  Rd8 {[%clk 0:01:05]} 41. h4 {[%clk 0:01:22]}  h5 {[%clk 0:01:00]} 42. Re7 {[%clk 0:01:20]}  g6 {[%clk 0:00:58]} 43. Re4 {[%clk 0:01:18]}  Rdd3 {[%clk 0:00:54]} 44. Ra4 {[%clk 0:01:16]}  Bc5 {[%clk 0:00:51]} 45. Rc2 {[%clk 0:01:14]}  Rbc3 {[%clk 0:00:46]} 46. Ra2 {[%clk 0:01:13]}  Kg7 {[%clk 0:00:46]} 47. g4 {[%clk 0:01:12]}  hxg4+ {[%clk 0:00:45]} 48. Kxg4 {[%clk 0:01:13]}  Rb3 {[%clk 0:00:45]} 49. Kf3 {[%clk 0:01:11]}  Rb2 {[%clk 0:00:45]} 50. Ra1 {[%clk 0:01:10]}  Rdd2 {[%clk 0:00:45]} 51. R1xa3 {[%clk 0:01:07]}  Rxf2+ {[%clk 0:00:44]} 52. Ke4 {[%clk 0:01:07]}  Bxa3 {[%clk 0:00:45]} 53. Rxa3 {[%clk 0:01:07]}  Rb4+ {[%clk 0:00:45]} 54. Kd3 {[%clk 0:01:07]}  Rxh4 {[%clk 0:00:44]} 55. Rxa7 {[%clk 0:01:07]}  Rf6 {[%clk 0:00:42]} 56. e4 {[%clk 0:01:06]}  Rd6+ {[%clk 0:00:40]} 57. Ke3 {[%clk 0:01:06]}  Re6 {[%clk 0:00:40]} 58. Ra4 {[%clk 0:01:06]}  f5 {[%clk 0:00:40]} 59. Ra8 {[%clk 0:01:05]}  Rexe4+ {[%clk 0:00:39]} 60. Kf3 {[%clk 0:01:05]}  Ra4 {[%clk 0:00:39]} 61. Kg3 {[%clk 0:01:01]}  Rhg4+ {[%clk 0:00:38]} 62. Kf3 {[%clk 0:01:01]}  Rxa8 {[%clk 0:00:38]} 0-1


[Site "https://www.chess.com"]

[Event "Titled Tuesday Blitz May 25 2021"]
[White "Hess, Robert"]
[Black "Garcia Garcia, Alejandro"]
[WhiteFideId "2022036"]
[BlackFideId "3516334"]
[WhiteElo "2557"]
[BlackElo "2131"]
[Result "1-0"]
[Round "02"]
[TimeControl "180+1"]
[Date "2021.05.25"]
[WhiteClock "0:00:03"]
[BlackClock "0:00:01"]

1. b3 {[%clk 0:02:57]}  Nf6 {[%clk 0:02:59]} 2. Bb2 {[%clk 0:02:56]}  g6 {[%clk 0:02:59]} 3. Bxf6 {[%clk 0:02:55]}  exf6 {[%clk 0:03:00]} 4. c4 {[%clk 0:02:55]}  Bg7 {[%clk 0:03:00]} 5. Nc3 {[%clk 0:02:55]}  f5 {[%clk 0:03:01]} 6. g3 {[%clk 0:02:55]}  d6 {[%clk 0:03:01]} 7. Bg2 {[%clk 0:02:55]}  Nd7 {[%clk 0:03:01]} 8. Nh3 {[%clk 0:02:51]}  Nf6 {[%clk 0:02:57]} 9. O-O {[%clk 0:02:51]}  O-O {[%clk 0:02:53]} 10. Rc1 {[%clk 0:02:46]}  Ne4 {[%clk 0:02:50]} 11. Nf4 {[%clk 0:02:18]}  Nxc3 {[%clk 0:02:39]} 12. dxc3 {[%clk 0:02:15]}  Rb8 {[%clk 0:02:36]} 13. Rc2 {[%clk 0:01:51]}  b5 {[%clk 0:02:35]} 14. cxb5 {[%clk 0:01:49]}  Rxb5 {[%clk 0:02:31]} 15. c4 {[%clk 0:01:47]}  Re5 {[%clk 0:02:23]} 16. Qd2 {[%clk 0:01:11]}  Bh6 {[%clk 0:02:06]} 17. e3 {[%clk 0:01:07]}  Rfe8 {[%clk 0:01:59]} 18. Rd1 {[%clk 0:00:54]}  Bxf4 {[%clk 0:01:05]} 19. gxf4 {[%clk 0:00:54]}  R5e6 {[%clk 0:00:57]} 20. Qa5 {[%clk 0:00:44]}  a6 {[%clk 0:00:51]} 21. c5 {[%clk 0:00:27]}  Qe7 {[%clk 0:00:30]} 22. cxd6 {[%clk 0:00:25]}  Rxd6 {[%clk 0:00:28]} 23. Rxd6 {[%clk 0:00:21]}  cxd6 {[%clk 0:00:25]} 24. Qc7 {[%clk 0:00:16]}  Qf6 {[%clk 0:00:23]} 25. Bc6 {[%clk 0:00:12]}  Rf8 {[%clk 0:00:20]} 26. Rd2 {[%clk 0:00:11]}  Qa1+ {[%clk 0:00:18]} 27. Kg2 {[%clk 0:00:10]}  Be6 {[%clk 0:00:13]} 28. Qxd6 {[%clk 0:00:10]}  Rc8 {[%clk 0:00:13]} 29. Bb7 {[%clk 0:00:06]}  Re8 {[%clk 0:00:07]} 30. Bxa6 {[%clk 0:00:04]}  Qb1 {[%clk 0:00:06]} 31. Bb5 {[%clk 0:00:04]}  Qe4+ {[%clk 0:00:06]} 32. f3 {[%clk 0:00:03]}  Qxe3 {[%clk 0:00:05]} 33. Bxe8 {[%clk 0:00:03]}  Bc8 {[%clk 0:00:03]} 34. Bxf7+ {[%clk 0:00:03]}  Kxf7 {[%clk 0:00:02]} 35. Qc7+ {[%clk 0:00:03]}  Kf6 {[%clk 0:00:01]} 36. Rd6+ {[%clk 0:00:03]} 1-0


[Site "https://www.chess.com"]

[Event "Titled Tuesday Blitz May 25 2021"]
[White "Ibadov, Dashgyn"]
[Black "Fernandez, Daniel Howard"]
[WhiteFideId "24107514"]
[BlackFideId "5801605"]
[WhiteElo "2191"]
[BlackElo "2468"]
[Result "0-1"]
[Round "02"]
[TimeControl "180+1"]
[Date "2021.05.25"]
[WhiteClock "0:01:48"]
[BlackClock "0:01:31"]

1. e4 {[%clk 0:03:00]}  e5 {[%clk 0:02:35]} 2. Nf3 {[%clk 0:03:01]}  Nc6 {[%clk 0:02:27]} 3. d4 {[%clk 0:03:01]}  exd4 {[%clk 0:02:26]} 4. Nxd4 {[%clk 0:03:02]}  Nf6 {[%clk 0:02:27]} 5. Nxc6 {[%clk 0:03:02]}  bxc6 {[%clk 0:02:27]} 6. e5 {[%clk 0:03:02]}  Nd5 {[%clk 0:02:27]} 7. c4 {[%clk 0:03:02]}  Nb6 {[%clk 0:02:19]} 8. Bd3 {[%clk 0:03:00]}  d6 {[%clk 0:02:13]} 9. exd6 {[%clk 0:02:56]}  Bxd6 {[%clk 0:02:14]} 10. O-O {[%clk 0:02:56]}  O-O {[%clk 0:02:04]} 11. Nc3 {[%clk 0:02:51]}  Nd7 {[%clk 0:02:03]} 12. Qc2 {[%clk 0:02:47]}  h6 {[%clk 0:02:02]} 13. b3 {[%clk 0:02:43]}  Ne5 {[%clk 0:02:02]} 14. Be4 {[%clk 0:02:39]}  f5 {[%clk 0:01:59]} 15. c5 {[%clk 0:02:15]}  fxe4 {[%clk 0:01:52]} 16. cxd6 {[%clk 0:02:14]}  Ba6 {[%clk 0:01:47]} 17. dxc7 {[%clk 0:02:11]}  Qxc7 {[%clk 0:01:48]} 18. Rd1 {[%clk 0:01:57]}  Bd3 {[%clk 0:01:48]} 19. Qb2 {[%clk 0:01:55]}  Ng4 {[%clk 0:01:48]} 20. g3 {[%clk 0:01:55]}  Rxf2 {[%clk 0:01:47]} 21. Qxf2 {[%clk 0:01:51]}  Nxf2 {[%clk 0:01:48]} 22. Kxf2 {[%clk 0:01:52]}  Qe5 {[%clk 0:01:48]} 23. Bb2 {[%clk 0:01:51]}  Rf8+ {[%clk 0:01:44]} 24. Kg2 {[%clk 0:01:49]}  Qf5 {[%clk 0:01:44]} 25. Rd2 {[%clk 0:01:47]}  Qf3+ {[%clk 0:01:43]} 26. Kh3 {[%clk 0:01:48]}  Rf5 {[%clk 0:01:31]} 0-1


[Site "https://www.chess.com"]